[Event "Asian Amateur-ch Women 2022"]
[Site "Muscat"]
[Date "2022.10.03"]
[Round "7.4"]
[White "Fatima, Saif Al-Ali"]
[Black "Sawan, Eman"]
[Result "0-1"]
[ECO "B92"]
[WhiteElo "1595"]
[BlackElo "1840"]
[Annotator "NA RC COMBH"]
[PlyCount "80"]
[EventDate "2022.09.29"]
[EventType "swiss"]
[EventCountry "OMN"]
[SourceTitle "playchess.com"]
[Source "ChessBase"]
[SourceQuality "1"]
[TimeControl "5400+30"]

1. e4 {[%emt 0:00:06]} c5 {[%emt 0:00:09]} 2. Nf3 {[%emt 0:00:28]} d6 {[%emt 0:00:10]} 3. d4 {[%emt 0:00:29]} cxd4 {[%emt 0:00:11]} 4. Nxd4 {[%emt 0:00:14]} Nf6 {[%emt 0:00:15]} 5. Nc3 {[%emt 0:00:59]} a6 {[%emt 0:00:10]} 6. Be2 {[%emt 0:01:59]} e5 {[%emt 0:01:31]} 7. Nb3 {[%emt 0:00:56]} Be6 {[%emt 0:02:45]} 8. Bg5 {[%emt 0:06:10]} Nbd7 {[%emt 0:05:22]} 9. O-O {[%emt 0:03:23]} Be7 {[%emt 0:02:27]} 10. f4 {[%emt 0:13:16]} exf4 {[%emt 0:05:33]} 11. Bxf4 {[%emt 0:01:09]} Ne5 {[%emt 0:00:40]} 12. Kh1 {[%emt 0:01:36]} O-O {[%emt 0:02:51]} 13. Nd4 {[%emt 0:03:03]} Bd7 {[%emt 0:06:17]} 14. Nf5 {[%emt 0:01:24]} Bxf5 {[%emt 0:00:34]} 15. exf5 {[%emt 0:00:08]} Qb6 {[%emt 0:08:20]} 16. Rb1 {[%emt 0:02:09]} Rac8 {[%emt 0:06:09]} 17. Bg5 {[%emt 0:12:00]} Qc6 {[%emt 0:07:01]} 18. Qd4 {[%emt 0:05:04]} Qc5 {[%emt 0:05:33]} 19. Rbd1 {[%emt 0:00:42]} Qxd4 {[%emt 0:07:23]} 20. Rxd4 {[%emt 0:00:16]} Nc6 {[%emt 0:01:19]} 21. Rd2 {[%emt 0:00:43]} h6 {[%emt 0:03:46]} 22. Bf4 {[%emt 0:02:53]} Ne5 {[%emt 0:01:52]} 23. h3 {[%emt 0:00:57]} Rfe8 {[%emt 0:03:30]} 24. Nd1 {[%emt 0:10:31]} Ne4 {[%emt 0:08:47]} 25. Rd4 {[%emt 0:01:03]} Nc5 {[%emt 0:01:48]} 26. Ne3 {[%emt 0:01:25]} Nc6 {[%emt 0:01:37]} 27. Rdd1 {[%emt 0:00:38]} Bg5 {[%emt 0:02:22]} 28. Bxg5 {[%emt 0:09:00]} hxg5 {[%emt 0:00:10]} 29. Bf3 {[%emt 0:00:25]} Rxe3 {[%emt 0:00:29]} 30. Rxd6 {[%emt 0:00:09]} Ne4 {[%emt 0:00:54]} 31. Bxe4 {[%emt 0:00:13]} Rxe4 {[%emt 0:00:04]} 32. Rd7 {[%emt 0:00:56]} Re7 {[%emt 0:00:08]} 33. Rd2 {[%emt 0:00:12]} Rce8 {[%emt 0:00:08]} 34. Kh2 {[%emt 0:00:21]} Re2 {[%emt 0:00:13]} 35. Rd7 {[%emt 0:00:23]} R8e7 {[%emt 0:00:13]} 36. Rd3 {[%emt 0:00:31]} Rxc2 {[%emt 0:00:13]} 37. Rb3 {[%emt 0:00:23]} Ree2 {[%emt 0:00:14]} 38. Rxb7 {[%emt 0:00:25]} Rxg2+ {[%emt 0:00:08]} 39. Kh1 {[%emt 0:00:03]} Rh2+ {[%emt 0:00:06]} 40. Kg1 {[%emt 0:00:07]} Rcg2# {[%emt 0:00:06]} 0-1

[Event "Asian Amateur-ch Women 2022"]
[Site "Muscat"]
[Date "2022.10.03"]
[Round "7.5"]
[White "Al-Khelaifi, Aisha"]
[Black "Al Kalbani, Wadima"]
[Result "1/2-1/2"]
[ECO "C55"]
[WhiteElo "1678"]
[BlackElo "1554"]
[Annotator "NA RC COMBH"]
[PlyCount "74"]
[EventDate "2022.09.29"]
[EventType "swiss"]
[EventCountry "OMN"]
[SourceTitle "playchess.com"]
[Source "ChessBase"]
[SourceQuality "1"]
[TimeControl "5400+30"]

1. e4 {[%emt 0:00:03]} e5 {[%emt 0:00:03]} 2. Nf3 {[%emt 0:00:14]} Nc6 {[%emt 0:00:04]} 3. Bc4 {[%emt 0:00:09]} Nf6 {[%emt 0:00:04]} 4. d3 {[%emt 0:02:27]} Be7 {[%emt 0:00:06]} 5. O-O {[%emt 0:00:13]} O-O {[%emt 0:00:05]} 6. Re1 {[%emt 0:01:12]} d6 {[%emt 0:00:07]} 7. a4 {[%emt 0:01:22]} h6 {[%emt 0:12:24]} 8. h3 {[%emt 0:02:44]} Kh8 {[%emt 0:00:45]} 9. Nc3 {[%emt 0:03:23]} Ng8 {[%emt 0:01:45]} 10. Nd5 {[%emt 0:04:20]} f5 {[%emt 0:01:05]} 11. a5 {[%emt 0:05:11]} a6 {[%emt 0:00:06]} 12. Ra3 {[%emt 0:09:53]} f4 {[%emt 0:13:29]} 13. c3 {[%emt 0:13:10]} Bf6 {[%emt 0:29:18]} 14. d4 {[%emt 0:10:20]} g5 {[%emt 0:14:32]} 15. Nh2 {[%emt 0:10:12]} exd4 {[%emt 0:03:17]} 16. cxd4 {[%emt 0:03:07]} Bxd4 {[%emt 0:02:49]} 17. Qh5 {[%emt 0:04:49]} Bg7 {[%emt 0:03:08]} 18. b4 {[%emt 0:08:53]} Ne5 {[%emt 0:00:09]} 19. Ba2 {[%emt 0:01:28]} Nf6 {[%emt 0:02:21]} 20. Qe2 {[%emt 0:03:19]} Bd7 {[%emt 0:08:54]} 21. Bb2 {[%emt 0:02:14]} Bb5 {[%emt 0:00:43]} 22. Qc2 {[%emt 0:01:44]} Nxd5 {[%emt 0:00:19]} 23. exd5 {[%emt 0:02:12]} Bd7 {[%emt 0:00:18]} 24. Kh1 {[%emt 0:03:59]} Rc8 {[%emt 0:02:01]} 25. Nf3 {[%emt 0:00:32]} Nxf3 {[%emt 0:00:42]} 26. Bxg7+ Kxg7 {[%emt 0:00:01]} 27. Rxf3 {[%emt 0:01:17]} c6 {[%emt 0:02:25]} 28. Qc3+ {[%emt 0:01:43]} Qf6 {[%emt 0:02:05]} 29. Qd2 {[%emt 0:01:05]} cxd5 {[%emt 0:00:25]} 30. Bxd5 {[%emt 0:00:32]} Rc7 {[%emt 0:01:28]} 31. g4 {[%emt 0:01:36]} Re8 {[%emt 0:00:27]} 32. Rxe8 {[%emt 0:02:18]} Bxe8 {[%emt 0:00:01]} 33. Rd3 {[%emt 0:00:06]} Bc6 {[%emt 0:00:57]} 34. Kg1 {[%emt 0:01:03]} Qe5 {[%emt 0:00:36]} 35. Kf1 {[%emt 0:00:39]} Qa1+ {[%emt 0:00:25]} 36. Kg2 {[%emt 0:00:01]} Qe5 {[%emt 0:00:11]} 37. Kf1 {[%emt 0:00:48]} Qf6 {[%emt 0:01:25]} 1/2-1/2

[Event "Asian Amateur-ch Women 2022"]
[Site "Muscat"]
[Date "2022.10.03"]
[Round "7.6"]
[White "Aditi Arun"]
[Black "Al Mansouri, Moza"]
[Result "0-1"]
[ECO "D02"]
[WhiteElo "1160"]
[BlackElo "1610"]
[Annotator "NA RC COMBH"]
[PlyCount "169"]
[EventDate "2022.09.29"]
[EventType "swiss"]
[EventCountry "OMN"]
[SourceTitle "playchess.com"]
[Source "ChessBase"]
[SourceQuality "1"]
[TimeControl "5400+30"]

1. d4 {[%emt 0:00:04]} Nf6 {[%emt 0:00:04]} 2. Bf4 {[%emt 0:00:06]} d5 {[%emt 0:00:18]} 3. Nf3 {[%emt 0:00:14]} c5 {[%emt 0:00:31]} 4. e3 {[%emt 0:00:18]} Nc6 {[%emt 0:00:16]} 5. Nbd2 {[%emt 0:00:16]} cxd4 {[%emt 0:00:18]} 6. exd4 {[%emt 0:00:24]} e6 {[%emt 0:01:02]} 7. Bb5 {[%emt 0:04:29]} Qb6 {[%emt 0:01:41]} 8. Bxc6+ {[%emt 0:00:39]} bxc6 {[%emt 0:00:29]} 9. Nb3 {[%emt 0:00:46]} a5 {[%emt 0:03:07]} 10. a4 {[%emt 0:02:15]} Ba6 {[%emt 0:00:58]} 11. Bd2 {[%emt 0:05:32]} Bc4 {[%emt 0:03:19]} 12. Bxa5 {[%emt 0:07:29]} Rxa5 {[%emt 0:00:29]} 13. Nxa5 {[%emt 0:00:57]} Qxa5+ {[%emt 0:00:45]} 14. c3 {[%emt 0:03:51]} Ne4 {[%emt 0:02:34]} 15. Ne5 {[%emt 0:02:35]} Nxc3 {[%emt 0:04:18]} 16. Nxc4 {[%emt 0:02:32]} dxc4 {[%emt 0:00:09]} 17. bxc3 {[%emt 0:01:19]} Qxc3+ {[%emt 0:00:01]} 18. Kf1 {[%emt 0:00:03]} Ba3 {[%emt 0:03:10]} 19. Rb1 {[%emt 0:01:41]} O-O {[%emt 0:00:39]} 20. g3 {[%emt 0:03:11]} Bb2 {[%emt 0:00:55]} 21. Qe2 {[%emt 0:01:56]} Rb8 {[%emt 0:01:27]} 22. Kg2 {[%emt 0:01:24]} Qb3 {[%emt 0:01:31]} 23. Rhc1 {[%emt 0:03:48]} c3 {[%emt 0:00:39]} 24. Qc2 {[%emt 0:02:30]} Qd5+ {[%emt 0:01:45]} 25. Kg1 {[%emt 0:00:25]} Rb4 {[%emt 0:01:51]} 26. Rxb2 {[%emt 0:03:03]} cxb2 {[%emt 0:00:59]} 27. Rb1 {[%emt 0:00:11]} Qa2 {[%emt 0:02:16]} 28. Kg2 {[%emt 0:00:52]} Qd5+ {[%emt 0:02:40]} 29. Kg1 {[%emt 0:00:31]} Qxd4 {[%emt 0:01:22]} 30. Qxc6 {[%emt 0:01:21]} g6 {[%emt 0:00:12]} 31. Qc8+ {[%emt 0:01:49]} Kg7 {[%emt 0:00:06]} 32. Qc2 {[%emt 0:00:06]} e5 {[%emt 0:01:03]} 33. Kg2 {[%emt 0:00:55]} e4 {[%emt 0:01:46]} 34. a5 {[%emt 0:01:03]} Qd3 {[%emt 0:00:45]} 35. Rxb2 {[%emt 0:01:10]} Qf3+ {[%emt 0:01:35]} 36. Kg1 {[%emt 0:00:05]} Rd4 {[%emt 0:00:49]} 37. Rb1 {[%emt 0:00:45]} e3 {[%emt 0:00:35]} 38. Qb2 {[%emt 0:00:54]} exf2+ {[%emt 0:01:22]} 39. Qxf2 {[%emt 0:00:11]} Qd5 {[%emt 0:02:10]} 40. Qb2 {[%emt 0:02:09]} Kh6 {[%emt 0:04:27]} 41. Qe2 {[%emt 0:00:41]} Rd2 {[%emt 0:01:03]} 42. Qe3+ {[%emt 0:00:35]} Kh5 {[%emt 0:02:05]} 43. g4+ {[%emt 0:01:06]} Kxg4 {[%emt 0:00:13]} 44. Rb4+ {[%emt 0:01:01]} Kh5 {[%emt 0:00:53]} 45. Qh3+ {[%emt 0:00:25]} Kg5 {[%emt 0:00:11]} 46. Qe3+ {[%emt 0:00:02]} Kf6 {[%emt 0:00:46]} 47. Qc3+ {[%emt 0:00:26]} Ke7 {[%emt 0:02:58]} 48. Qc7+ {[%emt 0:00:49]} Kf8 {[%emt 0:00:53]} 49. Qc8+ {[%emt 0:00:25]} Kg7 {[%emt 0:00:53]} 50. Qc3+ {[%emt 0:00:44]} f6 {[%emt 0:00:50]} 51. Qc7+ {[%emt 0:00:52]} Qd7 {[%emt 0:00:56]} 52. Rb7 {[%emt 0:00:50]} Qxc7 {[%emt 0:00:05]} 53. Rxc7+ {[%emt 0:00:07]} Kh6 {[%emt 0:00:06]} 54. a6 {[%emt 0:00:19]} Ra2 {[%emt 0:00:05]} 55. a7 {[%emt 0:00:06]} g5 {[%emt 0:00:36]} 56. Kf1 {[%emt 0:01:00]} Kg6 {[%emt 0:00:29]} 57. Ke1 {[%emt 0:00:44]} h5 {[%emt 0:00:06]} 58. Kd1 {[%emt 0:00:29]} g4 {[%emt 0:00:32]} 59. Kc1 {[%emt 0:00:14]} h4 {[%emt 0:00:32]} 60. Kb1 {[%emt 0:00:18]} Ra5 {[%emt 0:01:57]} 61. Kb2 {[%emt 0:00:26]} g3 {[%emt 0:01:21]} 62. hxg3 {[%emt 0:00:58]} hxg3 {[%emt 0:00:06]} 63. Rc3 {[%emt 0:00:21]} Rxa7 {[%emt 0:00:12]} 64. Rxg3+ {[%emt 0:00:08]} Kf5 {[%emt 0:00:09]} 65. Kc2 {[%emt 0:00:44]} Rd7 {[%emt 0:00:11]} 66. Rg1 {[%emt 0:00:37]} Rd6 {[%emt 0:00:52]} 67. Rf1+ {[%emt 0:00:38]} Kg6 {[%emt 0:00:21]} 68. Rg1+ {[%emt 0:00:13]} Kf7 {[%emt 0:00:11]} 69. Ra1 {[%emt 0:00:40]} f5 {[%emt 0:00:11]} 70. Rf1 {[%emt 0:00:19]} Kf6 {[%emt 0:00:13]} 71. Kc3 {[%emt 0:00:22]} Rd5 {[%emt 0:01:48]} 72. Kc4 {[%emt 0:00:21]} Re5 {[%emt 0:01:07]} 73. Kd4 {[%emt 0:00:13]} Re4+ {[%emt 0:00:32]} 74. Kd5 {[%emt 0:00:25]} Ra4 {[%emt 0:01:20]} 75. Kd6 {[%emt 0:00:52]} f4 {[%emt 0:00:17]} 76. Kd5 {[%emt 0:00:35]} Kf5 {[%emt 0:00:14]} 77. Kd6 {[%emt 0:01:11]} Ra3 {[%emt 0:00:25]} 78. Rh1 {[%emt 0:01:47]} f3 {[%emt 0:00:24]} 79. Rh8 {[%emt 0:00:58]} Ra6+ {[%emt 0:00:41]} 80. Kd5 {[%emt 0:00:13]} f2 {[%emt 0:00:58]} 81. Rh1 {[%emt 0:00:47]} Kf4 {[%emt 0:00:30]} 82. Rb1 {[%emt 0:00:44]} Kg3 {[%emt 0:00:19]} 83. Rb3+ {[%emt 0:00:18]} Kg2 {[%emt 0:00:11]} 84. Rb2 {[%emt 0:00:56]} Kg1 {[%emt 0:00:12]} 85. Kd4 {[%emt 0:43:12]} 0-1

[Event "Asian Amateur-ch Women 2022"]
[Site "Muscat"]
[Date "2022.10.03"]
[Round "7.7"]
[White "Khalil, Hanan"]
[Black "Dakshikaa S M"]
[Result "1/2-1/2"]
[ECO "C78"]
[WhiteElo "1484"]
[BlackElo "1117"]
[Annotator "NA RC COMBH"]
[PlyCount "87"]
[EventDate "2022.09.29"]
[EventType "swiss"]
[EventCountry "OMN"]
[SourceTitle "playchess.com"]
[Source "ChessBase"]
[SourceQuality "1"]
[TimeControl "5400+30"]

1. e4 {[%emt 0:00:04]} e5 {[%emt 0:00:02]} 2. Nf3 {[%emt 0:00:10]} Nc6 {[%emt 0:00:04]} 3. Bb5 {[%emt 0:00:11]} a6 {[%emt 0:00:07]} 4. Ba4 {[%emt 0:00:05]} Nf6 {[%emt 0:00:14]} 5. d3 {[%emt 1:32:30]} b5 {[%emt 0:01:02]} 6. Bb3 {[%emt 0:00:00]} Bc5 {[%emt 0:00:41]} 7. O-O {[%emt 0:00:00]} d6 {[%emt 0:02:39]} 8. c3 {[%emt 0:00:00]} O-O {[%emt 0:01:28]} 9. Nbd2 {[%emt 0:00:00]} Bb7 {[%emt 0:03:29]} 10. h3 {[%emt 0:00:00]} d5 {[%emt 0:07:47]} 11. Re1 {[%emt 0:00:00]} Re8 {[%emt 0:04:34]} 12. exd5 {[%emt 0:00:00]} Nxd5 {[%emt 0:00:22]} 13. Ne4 {[%emt 0:00:00]} Ba7 {[%emt 0:05:29]} 14. Bg5 {[%emt 0:00:00]} Qd7 {[%emt 0:03:56]} 15. Qd2 {[%emt 0:00:00]} Na5 {[%emt 0:09:50]} 16. Bc2 {[%emt 0:05:30]} Bb6 {[%emt 0:13:08]} 17. b4 {[%emt 0:00:00]} Nc6 {[%emt 0:00:32]} 18. Bb3 {[%emt 0:00:00]} a5 {[%emt 0:06:13]} 19. Bxd5 {[%emt 0:00:00]} Qxd5 {[%emt 0:00:17]} 20. Bf6 {[%emt 0:00:00]} h6 {[%emt 0:16:48]} 21. Nh2 {[%emt 0:00:00]} Ne7 {[%emt 0:09:40]} 22. Ng4 {[%emt 0:00:00]} Nf5 {[%emt 0:00:41]} 23. Bxg7 {[%emt 0:00:00]} Kxg7 {[%emt 0:03:40]} 24. Nxh6 {[%emt 0:00:00]} Qe6 {[%emt 0:05:37]} 25. Qg5+ {[%emt 0:00:00]} Qg6 {[%emt 0:01:07]} 26. Nxf5+ {[%emt 0:00:00]} Kf8 {[%emt 0:01:49]} 27. Qxg6 {[%emt 0:00:00]} fxg6 {[%emt 0:00:05]} 28. Nh4 {[%emt 0:00:00]} Kg7 {[%emt 0:00:10]} 29. a3 {[%emt 0:00:44]} Rad8 {[%emt 0:03:29]} 30. Rad1 {[%emt 0:06:16]} Rf8 {[%emt 0:00:00]} 31. Nf3 {[%emt 0:00:00]} Rfe8 32. Neg5 {[%emt 0:01:00]} e4 {[%emt 0:01:30]} 33. dxe4 {[%emt 0:00:00]} Rxd1 {[%emt 0:00:00]} 34. Rxd1 {[%emt 0:00:00]} Bxe4 {[%emt 0:00:00]} 35. Re1 {[%emt 0:00:37]} Bc6 {[%emt 0:00:00]} 36. Rxe8 {[%emt 0:00:37]} Bxe8 {[%emt 0:00:00]} 37. Nd4 {[%emt 0:00:27]} Kf6 {[%emt 0:00:37]} 38. Ngf3 {[%emt 0:00:24]} c5 {[%emt 0:01:18]} 39. Kf1 {[%emt 0:00:38]} cxd4 {[%emt 0:00:03]} 40. cxd4 {[%emt 0:00:12]} Bc6 {[%emt 0:00:42]} 41. Ne5 {[%emt 0:00:17]} Be8 {[%emt 0:01:11]} 42. Nf3 {[%emt 0:00:12]} Bc6 {[%emt 0:00:02]} 43. Ne5 {[%emt 0:00:12]} Be8 {[%emt 0:00:16]} 44. Nf3 {[%emt 0:02:24]} 1/2-1/2

[Event "Asian Amateur-ch Women 2022"]
[Site "Muscat"]
[Date "2022.10.03"]
[Round "7.8"]
[White "Al Ghafri, Alanoud"]
[Black "Al-Khelaifi, Salama"]
[Result "0-1"]
[ECO "B01"]
[WhiteElo "1275"]
[BlackElo "1798"]
[Annotator "NA RC COMBH"]
[PlyCount "121"]
[EventDate "2022.09.29"]
[EventType "swiss"]
[EventCountry "OMN"]
[SourceTitle "playchess.com"]
[Source "ChessBase"]
[SourceQuality "1"]
[TimeControl "5400+30"]

1. e4 {[%emt 0:00:03]} d5 {[%emt 0:00:30]} 2. exd5 {[%emt 0:00:07]} Qxd5 {[%emt 0:00:05]} 3. Nc3 {[%emt 0:00:09]} Qd6 {[%emt 0:00:05]} 4. d4 {[%emt 0:01:22]} Nf6 {[%emt 0:00:09]} 5. Nf3 {[%emt 0:00:22]} a6 {[%emt 0:00:06]} 6. Bc4 {[%emt 0:00:36]} b5 {[%emt 0:00:09]} 7. Bb3 {[%emt 0:00:48]} Bb7 {[%emt 0:00:05]} 8. d5 {[%emt 0:04:36]} b4 {[%emt 0:08:18]} 9. Ne2 {[%emt 0:08:50]} Nxd5 {[%emt 0:00:20]} 10. O-O {[%emt 0:08:35]} e6 {[%emt 0:03:10]} 11. Re1 {[%emt 0:11:27]} Be7 {[%emt 0:01:32]} 12. Ng3 {[%emt 0:02:39]} O-O {[%emt 0:05:47]} 13. a3 {[%emt 0:00:54]} bxa3 {[%emt 0:04:33]} 14. bxa3 {[%emt 0:00:07]} Bf6 {[%emt 0:01:20]} 15. Ne4 {[%emt 0:01:06]} Qd8 {[%emt 0:01:44]} 16. Rb1 {[%emt 0:01:22]} Nc3 {[%emt 0:10:32]} 17. Qxd8 {[%emt 0:03:32]} Rxd8 {[%emt 0:04:09]} 18. Nxf6+ {[%emt 0:01:51]} gxf6 {[%emt 0:00:03]} 19. Ra1 {[%emt 0:00:29]} Nd7 {[%emt 0:07:32]} 20. Bb2 {[%emt 0:00:23]} Ne4 {[%emt 0:06:25]} 21. h4 {[%emt 0:01:58]} Ndc5 {[%emt 0:02:52]} 22. Bc4 {[%emt 0:04:30]} f5 {[%emt 0:02:13]} 23. Bc1 {[%emt 0:06:45]} Bd5 {[%emt 0:06:49]} 24. Bxd5 {[%emt 0:01:36]} Rxd5 {[%emt 0:00:03]} 25. Bh6 {[%emt 0:01:47]} f6 {[%emt 0:00:54]} 26. Rad1 {[%emt 0:02:08]} Rad8 {[%emt 0:00:36]} 27. Rb1 {[%emt 0:01:54]} Kf7 {[%emt 0:00:59]} 28. Be3 {[%emt 0:01:05]} e5 {[%emt 0:03:12]} 29. Nh2 {[%emt 0:03:23]} f4 {[%emt 0:10:12]} 30. Bc1 {[%emt 0:03:00]} Nc3 {[%emt 0:00:36]} 31. Ra1 {[%emt 0:03:27]} Rd1 {[%emt 0:01:11]} 32. Bb2 {[%emt 0:01:03]} Rxe1+ {[%emt 0:04:28]} 33. Rxe1 {[%emt 0:00:08]} N3a4 {[%emt 0:01:11]} 34. Bc1 {[%emt 0:00:07]} Nc3 {[%emt 0:00:37]} 35. f3 {[%emt 0:01:33]} Rb8 {[%emt 0:00:49]} 36. Ng4 {[%emt 0:01:22]} N5a4 {[%emt 0:01:22]} 37. Nf2 {[%emt 0:01:08]} Rb1 {[%emt 0:00:37]} 38. Nd3 {[%emt 0:02:09]} Rb8 {[%emt 0:03:57]} 39. Kf2 {[%emt 0:01:55]} c5 {[%emt 0:00:36]} 40. Bd2 {[%emt 0:01:05]} c4 {[%emt 0:00:46]} 41. Nb4 {[%emt 0:00:56]} a5 {[%emt 0:01:14]} 42. Nc6 {[%emt 0:02:53]} Rb2 {[%emt 0:05:17]} 43. Nxa5 {[%emt 0:01:24]} Rxc2 {[%emt 0:00:13]} 44. Nxc4 {[%emt 0:00:07]} Nb2 {[%emt 0:01:15]} 45. Nd6+ {[%emt 0:07:23]} Ke6 {[%emt 0:00:48]} 46. Ne4 {[%emt 0:02:57]} Nxe4+ {[%emt 0:00:39]} 47. fxe4 {[%emt 0:00:20]} Rxd2+ {[%emt 0:01:13]} 48. Re2 {[%emt 0:00:27]} Rxe2+ {[%emt 0:00:13]} 49. Kxe2 {[%emt 0:00:05]} Kd6 {[%emt 0:00:11]} 50. Kf3 {[%emt 0:00:11]} h5 {[%emt 0:01:32]} 51. Ke2 {[%emt 0:01:43]} Kc5 {[%emt 0:00:19]} 52. Kd2 {[%emt 0:00:37]} Nc4+ {[%emt 0:00:28]} 53. Ke2 {[%emt 0:02:43]} Nxa3 {[%emt 0:00:06]} 54. Kf3 {[%emt 0:00:06]} Kd4 {[%emt 0:00:09]} 55. g4 {[%emt 0:00:06]} fxg3 {[%emt 0:00:10]} 56. Kxg3 {[%emt 0:00:09]} Kxe4 {[%emt 0:00:06]} 57. Kh3 {[%emt 0:00:28]} Kf3 {[%emt 0:00:08]} 58. Kh2 {[%emt 0:00:12]} Kf2 {[%emt 0:00:17]} 59. Kh1 {[%emt 0:00:56]} e4 {[%emt 0:00:07]} 60. Kh2 {[%emt 0:00:36]} e3 {[%emt 0:00:05]} 61. Kh3 {[%emt 0:00:32]} 0-1

[Event "Asian Amateur-ch Women 2022"]
[Site "Muscat"]
[Date "2022.10.03"]
[Round "7.9"]
[White "Al-Khulaifi, Ghada"]
[Black "Suchitraa Viswanathan"]
[Result "1/2-1/2"]
[ECO "C50"]
[WhiteElo "1620"]
[BlackElo "1041"]
[Annotator "NA RC COMBH"]
[PlyCount "44"]
[EventDate "2022.09.29"]
[EventType "swiss"]
[EventCountry "OMN"]
[SourceTitle "playchess.com"]
[Source "ChessBase"]
[SourceQuality "1"]
[TimeControl "5400+30"]

1. e4 {[%emt 0:00:04]} e5 {[%emt 0:01:03]} 2. Nf3 {[%emt 0:00:18]} Nc6 {[%emt 0:00:34]} 3. Bc4 {[%emt 0:00:21]} Bc5 {[%emt 0:00:41]} 4. O-O {[%emt 0:03:07]} d6 {[%emt 0:02:06]} 5. h3 {[%emt 0:07:45]} Nf6 {[%emt 0:02:56]} 6. d3 {[%emt 0:00:07]} h6 {[%emt 0:01:04]} 7. Be3 {[%emt 0:02:35]} Bb6 {[%emt 0:03:10]} 8. Nc3 {[%emt 0:00:49]} Be6 {[%emt 0:03:44]} 9. Bb5 {[%emt 0:05:24]} O-O {[%emt 0:07:08]} 10. Bxc6 {[%emt 0:08:31]} bxc6 {[%emt 0:02:20]} 11. Bxb6 {[%emt 0:05:56]} cxb6 {[%emt 0:01:55]} 12. d4 {[%emt 0:00:30]} Bc4 {[%emt 0:09:09]} 13. Re1 {[%emt 0:00:36]} Re8 {[%emt 0:02:51]} 14. Qd2 {[%emt 0:06:25]} Qc7 {[%emt 0:05:03]} 15. dxe5 {[%emt 0:03:56]} dxe5 {[%emt 0:01:08]} 16. Qe3 {[%emt 0:05:30]} Nh5 {[%emt 0:03:44]} 17. b3 {[%emt 0:03:13]} Be6 {[%emt 0:05:45]} 18. Ne2 {[%emt 0:04:03]} Nf4 {[%emt 0:04:27]} 19. Nxf4 {[%emt 0:05:24]} exf4 {[%emt 0:01:10]} 20. Qc3 {[%emt 0:00:09]} Rad8 {[%emt 0:05:09]} 21. e5 {[%emt 0:07:39]} Bd5 {[%emt 0:04:23]} 22. Rad1 {[%emt 0:00:31]} Qc8 {[%emt 0:05:11]} 1/2-1/2

[Event "Asian Amateur-ch Women 2022"]
[Site "Muscat"]
[Date "2022.10.04"]
[Round "8.1"]
[White "Wijesuriya, G P Y"]
[Black "Nadernia, Niki"]
[Result "0-1"]
[ECO "B23"]
[WhiteElo "1564"]
[BlackElo "1769"]
[Annotator "NA RC COMBH"]
[PlyCount "89"]
[EventDate "2022.09.29"]
[EventType "swiss"]
[EventCountry "OMN"]
[SourceTitle "playchess.com"]
[Source "ChessBase"]
[SourceQuality "1"]
[TimeControl "5400+30"]

1. e4 {[%emt 0:00:16]} c5 {[%emt 0:00:19]} 2. Nc3 {[%emt 0:00:06]} Nc6 {[%emt 0:00:05]} 3. f4 {[%emt 0:00:06]} g6 {[%emt 0:00:06]} 4. Nf3 {[%emt 0:00:06]} Bg7 {[%emt 0:00:04]} 5. a3 {[%emt 0:01:09]} d6 {[%emt 0:00:15]} 6. Bc4 {[%emt 0:00:10]} e6 {[%emt 0:00:06]} 7. d3 {[%emt 0:00:10]} Nge7 {[%emt 0:00:05]} 8. Ba2 {[%emt 0:00:11]} O-O {[%emt 0:02:12]} 9. O-O {[%emt 0:00:06]} Rb8 {[%emt 0:00:48]} 10. Ne2 {[%emt 0:03:18]} d5 {[%emt 0:05:36]} 11. e5 {[%emt 0:05:37]} b5 {[%emt 0:01:47]} 12. Ng3 {[%emt 0:01:37]} f6 {[%emt 0:18:21]} 13. exf6 {[%emt 0:08:46]} Bxf6 {[%emt 0:02:01]} 14. Rb1 {[%emt 0:08:01]} b4 {[%emt 0:03:53]} 15. a4 {[%emt 0:01:56]} Qa5 {[%emt 0:04:53]} 16. Bb3 {[%emt 0:00:28]} c4 {[%emt 0:00:44]} 17. dxc4 {[%emt 0:03:26]} dxc4 {[%emt 0:00:07]} 18. Ba2 {[%emt 0:00:06]} b3 {[%emt 0:00:05]} 19. cxb3 {[%emt 0:05:12]} cxb3 {[%emt 0:00:20]} 20. Bxb3 {[%emt 0:00:06]} Qb6+ {[%emt 0:00:04]} 21. Kh1 {[%emt 0:00:07]} Qxb3 {[%emt 0:00:07]} 22. Qe1 {[%emt 0:00:20]} Nf5 {[%emt 0:11:10]} 23. Ne4 {[%emt 0:02:37]} Be7 {[%emt 0:01:24]} 24. Bd2 {[%emt 0:03:40]} Ba6 {[%emt 0:04:47]} 25. Rf2 {[%emt 0:00:58]} Nb4 {[%emt 0:01:35]} 26. Ne5 {[%emt 0:01:47]} Nd3 {[%emt 0:03:48]} 27. Nxd3 {[%emt 0:01:50]} Bxd3 {[%emt 0:00:06]} 28. Rc1 {[%emt 0:15:49]} Bh4 {[%emt 0:00:45]} 29. Bc3 {[%emt 0:06:45]} Bxe4 {[%emt 0:03:02]} 30. Qxe4 {[%emt 0:01:22]} Bxf2 {[%emt 0:00:08]} 31. Qe5 {[%emt 0:00:03]} Bd4 {[%emt 0:00:06]} 32. Bxd4 {[%emt 0:02:03]} Nxd4 {[%emt 0:00:02]} 33. Qxd4 {[%emt 0:00:01]} Rfd8 {[%emt 0:00:12]} 34. Qg1 {[%emt 0:00:27]} Rbc8 {[%emt 0:00:33]} 35. Rf1 {[%emt 0:00:34]} Rd2 {[%emt 0:00:08]} 36. Qxa7 {[%emt 0:02:07]} Rd1 {[%emt 0:00:17]} 37. Kg1 {[%emt 0:00:51]} Rcd8 {[%emt 0:00:58]} 38. Rxd1 {[%emt 0:01:39]} Qxd1+ {[%emt 0:00:04]} 39. Kf2 {[%emt 0:00:09]} Qd4+ {[%emt 0:00:05]} 40. Qxd4 {[%emt 0:00:17]} Rxd4 {[%emt 0:00:01]} 41. b3 {[%emt 0:00:11]} Rxf4+ {[%emt 0:00:15]} 42. Ke3 {[%emt 0:00:11]} Rb4 {[%emt 0:00:02]} 43. a5 {[%emt 0:00:11]} Rxb3+ {[%emt 0:00:04]} 44. Kd4 {[%emt 0:00:02]} Ra3 {[%emt 0:00:08]} 45. a6 {[%emt 0:28:06]} 0-1